lending/lending_fUSD_20260204
["ID","MTS","AMOUNT","RATE_DAILY","PERIOD"]
[404472885,1770174640533,-195.0,0.00013725,2]
[404472887,1770174640542,-223.56500392,0.00014026,2]
[404472888,1770174640551,-493.17892567,0.00014026,2]
[404472890,1770174640561,-285.19253542,0.00014027,2]
[404472892,1770174640570,-585649.9467,0.00014027,2]
[404472894,1770174640579,-164.80956595,0.00014127,2]
[404472895,1770174640588,-800.288,0.00014127,2]
[404472896,1770174640598,-151.0,0.00014406,2]
[404472897,1770174640607,-151.0,0.00014406,2]
[404472898,1770174640617,-151.0,0.00014406,2]
[404472899,1770174640627,-151.0,0.00014406,2]
[404472900,1770174640636,-151.0,0.00014406,2]
[404472901,1770174640645,-151.0,0.00014406,2]
[404472902,1770174640655,-151.0,0.00014406,2]
[404472903,1770174640664,-151.0,0.00014406,2]
[404472904,1770174640673,-151.0,0.00014406,2]
[404472905,1770174640684,-190.1564116,0.00014406,2]
[404472906,1770174640693,-600.0,0.00014686,2]
[404472907,1770174640702,-600.0,0.00014686,2]
[404472908,1770174640712,-600.0,0.00014686,2]
[404472909,1770174640722,-600.0,0.00014686,2]
[404472910,1770174640732,-600.0,0.00014686,2]
[404472911,1770174640742,-195.0,0.00014686,2]
[404472912,1770174640752,-195.0,0.00014686,2]
[404472913,1770174640762,-250.0,0.00015,2]
[404472914,1770174640776,-14046.64456359,0.00015094,2]
[404472915,1770174640786,-160.0,0.00015495,2]
[404472916,1770174640796,-677.13,0.00016031,2]
[404472917,1770174640806,-549.35023034,0.00016099,2]
[404472918,1770174640815,-1852.42,0.00016111,2]
[404472919,1770174640825,-3240.0,0.00016142,2]
[404472920,1770174640835,-321.45,0.00016142,2]
[404472921,1770174640844,-258.54,0.00016292,2]
[404472922,1770174640854,-1000.0,0.00016457,2]
[404472923,1770174640863,-487.0364942,0.00016462,2]
[404472924,1770174640873,-164.2273867,0.00016598,2]
[404472925,1770174640883,-14046.64456359,0.00016614,2]
[404472926,1770174640892,-1909.98,0.0001681,2]
[404472927,1770174640901,-250.0,0.00016843,2]
[404472928,1770174640911,-487.0364942,0.00016874,2]
[404472929,1770174640921,-321.45,0.00016949,2]
[404472930,1770174640932,-500.0,0.00017,7]
[404472931,1770174640943,-500.0,0.00017,7]
[404472932,1770174640953,-508.46,0.00017,7]
[404472933,1770174640962,-300.0,0.00017,2]
[404472934,1770174640972,-500.0,0.00017,7]
[404472935,1770174640982,-500.0,0.00017,7]
[404472936,1770174640991,-500.0,0.00017,7]
[404472937,1770174641002,-500.0,0.00017,7]
[404472938,1770174641015,-500.0,0.00017,7]
[404472939,1770174641024,-500.0,0.00017,7]
[404472940,1770174641034,-500.0,0.00017,7]
[404472941,1770174641043,-500.0,0.00017,7]
[404472942,1770174641052,-500.0,0.00017,7]
[404472943,1770174641061,-500.0,0.00017,7]
[404472944,1770174641071,-500.0,0.00017,7]
[404472945,1770174641080,-500.0,0.00017,7]
[404472946,1770174641090,-500.0,0.00017,7]
[404472947,1770174641099,-500.0,0.00017,7]
[404472948,1770174641108,-500.0,0.00017,7]
[404472949,1770174641117,-500.0,0.00017,7]
[404472950,1770174641126,-500.0,0.00017,7]
[404472951,1770174641135,-500.0,0.00017,7]
[404472952,1770174641145,-500.0,0.00017,7]
[404472953,1770174641154,-500.0,0.00017,7]
[404472954,1770174641163,-500.0,0.00017,7]
[404472955,1770174641173,-500.0,0.00017,7]
[404472956,1770174641182,-500.0,0.00017,7]
[404472957,1770174641191,-500.0,0.00017,7]
[404472958,1770174641200,-500.0,0.00017,7]
[404472959,1770174641210,-500.0,0.00017,7]
[404472960,1770174641219,-500.0,0.00017,7]
[404472961,1770174641228,-500.0,0.00017,7]
[404472962,1770174641237,-500.0,0.00017,7]
[404472963,1770174641246,-500.0,0.00017,7]
[404472964,1770174641255,-500.0,0.00017,7]
[404472965,1770174641264,-408.8,0.00017,7]
[404472966,1770174641273,-160.0,0.00017,7]
[404472967,1770174641282,-500.0,0.00017,7]
[404472968,1770174641291,-500.0,0.00017,7]
[404472969,1770174641300,-500.0,0.00017,7]
[404472970,1770174641309,-500.0,0.00017,7]
[404472971,1770174641319,-500.0,0.00017,7]
[404472972,1770174641332,-500.0,0.00017,7]
[404472973,1770174641343,-500.0,0.00017,7]
[404472974,1770174641352,-500.0,0.00017,7]
[404472975,1770174641361,-500.0,0.00017,7]
[404472976,1770174641370,-500.0,0.00017,7]
[404472977,1770174641380,-500.0,0.00017,7]
[404472978,1770174641389,-500.0,0.00017,7]
[404472979,1770174641398,-500.0,0.00017,7]
[404472980,1770174641408,-500.0,0.00017,7]
[404472981,1770174641417,-500.0,0.00017,7]
[404472982,1770174641426,-500.0,0.00017,7]
[404472983,1770174641435,-500.0,0.00017,7]
[404472984,1770174641444,-500.0,0.00017,7]
[404472985,1770174641454,-500.0,0.00017,7]
[404472986,1770174641463,-500.0,0.00017,7]
[404472987,1770174641472,-500.0,0.00017,7]
[404472988,1770174641481,-500.0,0.00017,7]
[404472989,1770174641490,-500.0,0.00017,7]
[404472990,1770174641500,-500.0,0.00017,7]
[404472991,1770174641509,-500.0,0.00017,7]
[404472992,1770174641518,-500.0,0.00017,7]
[404472993,1770174641527,-500.0,0.00017,7]
[404472994,1770174641536,-500.0,0.00017,7]
[404472995,1770174641545,-500.0,0.00017,7]
[404472996,1770174641554,-500.0,0.00017,7]
[404472997,1770174641564,-500.0,0.00017,7]
[404472998,1770174641574,-500.0,0.00017,7]
[404472999,1770174641583,-500.0,0.00017,7]
[404473000,1770174641594,-500.0,0.00017,7]
[404473001,1770174641603,-500.0,0.00017,7]
[404473002,1770174641613,-500.0,0.00017,7]
[404473003,1770174641623,-500.0,0.00017,7]
[404473004,1770174641633,-500.0,0.00017,7]
[404473005,1770174641642,-500.0,0.00017,7]
[404473006,1770174641651,-500.0,0.00017,7]
[404473007,1770174641660,-500.0,0.00017,7]
[404473008,1770174641670,-500.0,0.00017,7]
[404473009,1770174641679,-500.0,0.00017,7]
[404473010,1770174641688,-500.0,0.00017,7]
[404473011,1770174641698,-500.0,0.00017,7]
[404473012,1770174641707,-500.0,0.00017,7]
[404473013,1770174641721,-500.0,0.00017,7]
[404473014,1770174641731,-500.0,0.00017,7]
[404473015,1770174641740,-500.0,0.00017,7]
[404473016,1770174641749,-500.0,0.00017,7]
[404473017,1770174641759,-500.0,0.00017,7]
[404473018,1770174641768,-500.0,0.00017,7]
[404473019,1770174641778,-500.0,0.00017,7]
[404473020,1770174641787,-500.0,0.00017,7]
[404473021,1770174641797,-500.0,0.00017,7]
[404473022,1770174641806,-500.0,0.00017,7]
[404473023,1770174641815,-500.0,0.00017,7]
[404473024,1770174641824,-500.0,0.00017,7]
[404473025,1770174641834,-500.0,0.00017,7]
[404473026,1770174641844,-500.0,0.00017,7]
[404473027,1770174641854,-500.0,0.00017,7]
[404473028,1770174641865,-500.0,0.00017,7]
[404473029,1770174641874,-500.0,0.00017,7]
[404473030,1770174641883,-500.0,0.00017,7]
[404473031,1770174641893,-500.0,0.00017,7]
[404473032,1770174641902,-500.0,0.00017,7]
[404473033,1770174641912,-500.0,0.00017,7]
[404473034,1770174641923,-500.0,0.00017,7]
[404473035,1770174641936,-166.51,0.00017,7]
[404473036,1770174641947,-500.0,0.00017,7]
[404473037,1770174641957,-500.0,0.00017099,2]
[404473038,1770174641966,-500.0,0.00017099,2]
[404473039,1770174641977,-500.0,0.00017099,2]
[404473040,1770174641986,-500.0,0.00017099,2]
[404473041,1770174641995,-500.0,0.00017099,2]
[404473042,1770174642006,-500.0,0.00017099,2]
[404473043,1770174642016,-500.0,0.00017099,2]
[404473044,1770174642032,-500.0,0.00017099,2]
[404473045,1770174642041,-500.0,0.00017099,2]
[404473046,1770174642050,-500.0,0.00017099,2]
[404473047,1770174642059,-500.0,0.00017099,2]
[404473048,1770174642069,-209.40437684,0.00017099,2]
[404473049,1770174642078,-174.61919141,0.00017099,2]
[404473050,1770174642088,-322.6107,0.00017099,2]
[404473051,1770174642097,-200.0,0.00017099,2]
[404473052,1770174642110,-195.12483545,0.00017099,2]
[404473053,1770174642119,-209.40437684,0.00017099,2]
[404473054,1770174642129,-151.0,0.00017099,2]
[404473055,1770174642138,-605.59208121,0.00017099,2]
[404473056,1770174642147,-1428.38747117,0.00017099,2]
[404473057,1770174642157,-217.15233878,0.00017154,2]
[404473058,1770174642166,-200.0,0.00017174,2]
[404473059,1770174642176,-225.18697532,0.00017209,2]
[404473060,1770174642186,-2000.0,0.00017256,2]
[404473061,1770174642196,-1000.0,0.0001726,2]
[404473062,1770174642206,-233.51889341,0.00017264,2]
[404473063,1770174642217,-200.0,0.00017283,2]
[404473064,1770174642227,-487.0364942,0.00017285,2]
[404473065,1770174642237,-242.15909246,0.00017319,2]
[404473066,1770174642246,-251.11897888,0.00017374,2]
[404473067,1770174642256,-3307.0,0.00017405,2]
[404473068,1770174642265,-1502.0,0.00017415,2]
[404473069,1770174642275,-823.65250003,0.00017415,2]
[404473070,1770174642284,-260.4103811,0.00017429,2]
[404473071,1770174642293,-200.0,0.00017435,2]
[404473072,1770174642302,-270.0455652,0.00017484,2]
[404473073,1770174642312,-200.0,0.00017489,2]
[404473074,1770174642321,-160.0,0.000175,7]
[404473075,1770174642331,-3307.0,0.00017507,2]
[404473076,1770174642342,-303.19,0.00017534,4]
[404473077,1770174642351,-1000.0,0.00017534,2]
[404473078,1770174642361,-200.0,0.00017536,2]
[404473079,1770174642370,-280.03725112,0.00017539,2]
[404473080,1770174642380,-290.39862941,0.00017594,2]
[404473081,1770174642389,-3307.0,0.00017607,2]
[404473082,1770174642398,-200.0,0.00017643,2]
[404473083,1770174642407,-345.242167,0.00017647,2]
[404473084,1770174642417,-181.08010149,0.00017647,2]
[404473085,1770174642427,-200.0,0.00017647,2]
[404473086,1770174642436,-1481.23780761,0.00017647,2]
[404473087,1770174642445,-301.1433787,0.00017649,2]
[404473088,1770174642454,-3307.0,0.00017682,2]
[404473089,1770174642464,-3307.0,0.00017687,2]
[404473090,1770174642474,-487.0364942,0.00017697,2]
[404473091,1770174642483,-3307.0,0.00017733,2]
[404473092,1770174642495,-321.45,0.00017756,2]
[404473093,1770174642505,-287.59995546,0.00017786,2]
[404473094,1770174642514,-300.0,0.00017808,4]
[404473095,1770174642523,-1000.0,0.00017808,2]
[404473096,1770174642532,-213.0,0.00017812,2]
[404473097,1770174642542,-200.0,0.00017812,2]
[404473098,1770174642551,-150.0,0.00017812,2]
[404473099,1770174642560,-150.685,0.00017812,2]
[404473100,1770174642570,-272.463,0.00017812,2]
[404473101,1770174642579,-171.937,0.00017812,2]
[404473102,1770174642591,-170.0,0.00017812,2]
[404473103,1770174642601,-150.076,0.00017812,2]
[404473104,1770174642610,-150.0,0.00017812,2]
[404473105,1770174642620,-150.0,0.00017812,2]
[404473106,1770174642629,-150.127,0.00017812,2]
[404473107,1770174642641,-151.0,0.00017812,2]
[404473108,1770174642662,-1410.0,0.00017812,2]
[404473109,1770174642680,-3482.0,0.00017812,2]
[404473110,1770174642692,-616.0,0.00017812,2]
[404473111,1770174642702,-1335.0,0.00017812,2]
[404473112,1770174642713,-1271.0,0.00017812,2]
[404473113,1770174642725,-150.0,0.00017812,2]
[404473114,1770174642737,-1205.0,0.00017812,2]
[404473115,1770174642749,-917.0,0.00017812,2]
[404473116,1770174642761,-3253.0,0.00017812,2]
[404473117,1770174642770,-568.0,0.00017812,2]
[404473118,1770174642780,-2445.0,0.00017812,2]
[404473119,1770174642791,-200.0,0.00017856,2]
[404473120,1770174642801,-295.71247458,0.00017862,2]
[404473121,1770174642813,-780.38989905,0.00017862,2]
[404473122,1770174642823,-1376.70028449,0.00017862,2]
[404473123,1770174642834,-2059.46129056,0.00017862,2]
[404473124,1770174642846,-2786.5233,0.00017862,2]
[404473125,1770174642856,-3307.0,0.00017866,2]
[404473126,1770174642867,-25000.0,0.000179,3]
[404473127,1770174642878,-160.0,0.000179,3]
[404473128,1770174642887,-500.0,0.000179,2]
[404473129,1770174642898,-10000.0,0.000179,2]
[404473130,1770174642907,-150.0,0.000179,2]
[404473131,1770174642919,-150.0,0.000179,2]
[404473132,1770174642934,-150.0,0.000179,2]
[404473133,1770174642944,-150.0,0.000179,2]
[404473134,1770174642953,-150.0,0.000179,2]
[404473135,1770174642964,-500.0,0.00017973,2]
[404473136,1770174642974,-500.0,0.00017973,2]
[404473137,1770174642983,-500.0,0.00017973,2]
[404473138,1770174642992,-500.0,0.00017973,2]
[404473139,1770174643003,-500.0,0.00017973,2]
[404473140,1770174643013,-500.0,0.00017973,2]
[404473141,1770174643023,-500.0,0.00017973,2]
[404473142,1770174643031,-500.0,0.00017973,2]
[404473143,1770174643041,-500.0,0.00017973,2]
[404473144,1770174643053,-506.4289128,0.00017973,2]
[404473145,1770174643078,-500.0,0.00017973,2]
[404473146,1770174643098,-500.0,0.00017973,2]
[404473147,1770174643108,-151.0,0.00017997,2]
[404473148,1770174643119,-151.0,0.00017997,2]
[404473149,1770174643129,-569.7374105,0.00017999,2]
[404473150,1770174643139,-16947.4215018,0.00017999,2]
[404473151,1770174643149,-155.353,0.00017999,2]
[404473152,1770174643161,-54621.6366906,0.00017999,2]
[404473153,1770174643172,-1293.3975817,0.00017999,2]
[404473154,1770174643183,-397.28877508,0.00017999,2]
[404473155,1770174643192,-300.0,0.00017999,2]
[404473156,1770174643202,-262974.1918905,0.00017999,2]
[404473157,1770174643211,-300.0,0.00017999,2]
[404473158,1770174643220,-487.0,0.00017999,2]
[404473159,1770174643230,-529.11,0.00017999,2]
[404473160,1770174643239,-9021.0,0.00018,2]
[404473161,1770174643249,-478708.54788704,0.00018,2]
[404473162,1770174643259,-2000.88772904,0.00018,2]
[404473163,1770174643269,-151.614,0.00018,2]
[404473164,1770174643278,-265.2,0.00018,2]
[404473165,1770174643287,-1934030.07182656,0.00018,2]
[404473166,1770174643322,-597.032921,0.00018,2]
[404473167,1770174643332,-2299.1,0.00018,2]
[404473176,1770174643958,-112.78507853,0.00018,2]
[404473177,1770174643971,-634.43867938,0.00018,2]
[404473178,1770174643990,-1861.03274421,0.00018,2]
[404473190,1770174646185,-4900.0,0.00018,2]
[404473191,1770174646197,-1642.91660403,0.00018,2]
[404473192,1770174646297,-1609.6569225,0.00018,2]
[404473193,1770174646464,-1000.0,0.00018,2]
[404473194,1770174646475,-20637.03494342,0.00018,2]
[404473195,1770174646524,-7416.2992831,0.00018,2]
[404473201,1770174771976,10000.0,7.29e-05,2]
[404473269,1770175832178,-320.124,0.00012544,2]
[404473270,1770175832190,-879.876,0.00012544,2]
[404473271,1770175832199,-300.0,0.00012544,2]
[404473272,1770175832208,-295.71247458,0.00012545,2]
[404473273,1770175832217,-780.38989905,0.00012545,2]
[404473274,1770175832226,-1376.70028449,0.00012545,2]
[404473275,1770175832235,-2059.46129056,0.00012545,2]
[404473276,1770175832244,-2113.21265461,0.00012545,2]
[404473277,1770175832255,-565.67220894,0.00012545,2]
[404473278,1770175832273,-107.63843645,0.00012545,2]
[404473279,1770175832282,-195.0,0.00013172,2]
[404473280,1770175832291,-32.627369,0.000138,2]
[404473281,1770175832302,-162.372631,0.000138,2]
[404473282,1770175832315,-195.0,0.000138,2]
[404473283,1770175832324,-58.72581074,0.000138,2]
[404473284,1770175832335,-2000.0,0.000138,2]
[404473285,1770175832347,-2579.82837852,0.000138,2]
[404473286,1770175832363,-1014.02545008,0.000138,2]
[404473287,1770175832374,-6928.44455277,0.000138,2]
[404473288,1770175832384,-256.51773851,0.000146,2]
[404473289,1770175832394,-517.7655455,0.000146,2]
[404473291,1770175832404,-506.1368265,0.000146,2]
[404473293,1770175832413,-600.0,0.00014606,2]
[404473295,1770175832423,-195.0,0.00014612,2]
[404473296,1770175832432,-150.0,0.00014685,2]
[404473297,1770175832441,-600.0,0.00014686,2]
[404473298,1770175832451,-600.0,0.00014686,2]
[404473299,1770175832460,-600.0,0.00014686,2]
[404473300,1770175832469,-250.0,0.00015,2]
[404473301,1770175832480,-3535.61903197,0.00015308,2]
[404473302,1770175832492,-918.949,0.00015308,2]
[404473303,1770175832695,-2225.9,0.00015308,2]
[404473304,1770175832971,-2500.70762644,0.00015308,2]
[404473305,1770175838342,-771.86958136,0.00015308,2]
[404473306,1770175838354,-2627.97895234,0.00015308,2]
[404473307,1770175838364,-195.0,0.0001606,2]
[404473308,1770175838373,-600.0,0.0001606,2]
[404473309,1770175838384,-500.0,0.00016094,2]
[404473310,1770175838393,-288.15,0.00016111,2]
[404473311,1770175838403,-2008.01,0.00016111,2]
[404473312,1770175838413,-150.0,0.00016111,2]
[404473313,1770175838422,-200.0,0.00016275,2]
[404473314,1770175838434,-175.44,0.00016448,2]
[404473315,1770175838443,-487.0364942,0.00016462,2]
[404473316,1770175838453,-288.15,0.00016715,2]
[404473317,1770175838462,-12581.02419211,0.00016816,2]
[404473318,1770175838473,-500.0,0.00016999,2]
[404473319,1770175838483,-500.0,0.00016999,2]
[404473320,1770175838492,-500.0,0.00016999,2]
[404473321,1770175838502,-500.0,0.00016999,2]
[404473322,1770175838512,-500.0,0.00016999,2]
[404473323,1770175838521,-500.0,0.00016999,2]
[404473324,1770175838532,-500.0,0.00016999,2]
[404473325,1770175838541,-500.0,0.00016999,2]
[404473326,1770175838551,-500.0,0.00016999,2]
[404473327,1770175838560,-300.0,0.00017,2]
[404473328,1770175838569,-46575.56553584,0.00017,2]
[404473329,1770175838579,-333.0,0.00017057,2]
[404473330,1770175838588,-174.61919141,0.00017099,2]
[404473331,1770175838597,-345.24216701,0.00017099,2]
[404473332,1770175838606,-322.6107,0.00017099,2]
[404473333,1770175838615,-209.40437684,0.00017099,2]
[404473334,1770175838625,-200.0,0.00017113,2]
[404473335,1770175838634,-200.0,0.00017116,2]
[404473336,1770175838643,-217.15233878,0.00017154,2]
[404473337,1770175838652,-200.0,0.00017157,2]
[404473338,1770175838661,-333.0,0.00017168,2]
[404473339,1770175838671,-225.18697532,0.00017209,2]
[404473340,1770175838680,-1000.0,0.0001726,2]
[404473341,1770175838691,-233.51889341,0.00017264,2]
[404473342,1770175838700,-4743.0,0.00017277,2]
[404473343,1770175838709,-200.0,0.0001731,2]
[404473344,1770175838719,-288.15,0.00017319,2]
[404473345,1770175838728,-242.15909246,0.00017319,2]
[404473346,1770175838737,-175.44,0.00017362,2]
[404473348,1770175838747,-251.11897888,0.00017374,2]
[404473350,1770175838756,-200.0,0.00017404,2]
[404473352,1770175838765,-500.0,0.00017404,2]
[404473354,1770175838775,-500.0,0.00017404,2]
[404473355,1770175838784,-500.0,0.00017404,2]
[404473356,1770175838794,-500.0,0.00017404,2]
[404473358,1770175838803,-500.0,0.00017404,2]
[404473360,1770175838813,-500.0,0.00017404,2]
[404473362,1770175838822,-500.0,0.00017404,2]
[404473364,1770175838831,-500.0,0.00017404,2]
[404473366,1770175838839,-500.0,0.00017404,2]
[404473368,1770175838849,-500.0,0.00017404,2]
[404473370,1770175838858,-500.0,0.00017404,2]
[404473372,1770175838867,-1428.38747117,0.00017404,2]
[404473374,1770175838876,-156.49550274,0.00017414,2]
[404473376,1770175838885,-1503.0,0.00017415,2]
[404473378,1770175838895,-1503.0,0.00017415,2]
[404473380,1770175838904,-1503.0,0.00017415,2]
[404473381,1770175838912,-1503.0,0.00017415,2]
[404473383,1770175838922,-1503.0,0.00017415,2]
[404473385,1770175838931,-1503.0,0.00017415,2]
[404473386,1770175838941,-1503.0,0.00017415,2]
[404473387,1770175838950,-1503.0,0.00017415,2]
[404473388,1770175838960,-1503.0,0.00017415,2]
[404473389,1770175838969,-1503.0,0.00017415,2]
[404473390,1770175838979,-1503.0,0.00017415,2]
[404473391,1770175838988,-1503.0,0.00017415,2]
[404473392,1770175838998,-1503.0,0.00017415,2]
[404473393,1770175839008,-1503.0,0.00017415,2]
[404473394,1770175839017,-1503.0,0.00017415,2]
[404473395,1770175839028,-1503.0,0.00017415,2]
[404473396,1770175839037,-1503.0,0.00017415,2]
[404473397,1770175839047,-1503.0,0.00017415,2]
[404473398,1770175839056,-1503.0,0.00017415,2]
[404473399,1770175839066,-1503.0,0.00017415,2]
[404473400,1770175839075,-1028.08764089,0.00017415,2]
[404473401,1770175839085,-167.23924126,0.00017415,2]
[404473402,1770175839095,-159.0,0.00017415,2]
[404473403,1770175839105,-151.0,0.00017415,2]
[404473404,1770175839115,-1503.0,0.00017415,2]
[404473405,1770175839125,-151.0,0.00017415,2]
[404473406,1770175839135,-159.63739787,0.00017415,2]
[404473407,1770175839144,-1503.0,0.00017415,2]
[404473408,1770175839154,-151.0,0.00017415,2]
[404473409,1770175839164,-1503.0,0.00017415,2]
[404473410,1770175839174,-151.0,0.00017415,2]
[404473411,1770175839185,-1503.0,0.00017415,2]
[404473412,1770175839195,-151.0,0.00017415,2]
[404473413,1770175839205,-1503.0,0.00017415,2]
[404473414,1770175839214,-151.0,0.00017415,2]
[404473415,1770175839224,-1503.0,0.00017415,2]
[404473416,1770175839233,-151.0,0.00017415,2]
[404473417,1770175839243,-1503.0,0.00017415,2]
[404473418,1770175839252,-151.0,0.00017415,2]
[404473419,1770175839262,-1503.0,0.00017415,2]
[404473420,1770175839272,-151.0,0.00017415,2]
[404473421,1770175839282,-1503.0,0.00017415,2]
[404473422,1770175839291,-151.0,0.00017415,2]
[404473423,1770175839301,-1503.0,0.00017415,2]
[404473424,1770175839314,-1503.0,0.00017415,2]
[404473425,1770175839324,-151.0,0.00017415,2]
[404473426,1770175839333,-1503.0,0.00017415,2]
[404473427,1770175839342,-151.0,0.00017415,2]
[404473428,1770175839351,-1503.0,0.00017415,2]
[404473429,1770175839361,-151.0,0.00017415,2]
[404473430,1770175839374,-151.0,0.00017415,2]
[404473431,1770175839384,-1503.0,0.00017415,2]
[404473432,1770175839396,-151.0,0.00017415,2]
[404473433,1770175839406,-1503.0,0.00017415,2]
[404473434,1770175839415,-151.0,0.00017415,2]
[404473435,1770175839424,-1503.0,0.00017415,2]
[404473436,1770175839435,-151.0,0.00017415,2]
[404473437,1770175839445,-1503.0,0.00017415,2]
[404473438,1770175839454,-151.0,0.00017415,2]
[404473439,1770175839464,-1503.0,0.00017415,2]
[404473440,1770175839473,-1503.0,0.00017415,2]
[404473441,1770175839483,-1503.0,0.00017415,2]
[404473442,1770175839493,-1503.0,0.00017415,2]
[404473443,1770175839502,-280.32,0.00017415,2]
[404473444,1770175839512,-414.0,0.00017427,2]
[404473445,1770175839521,-260.4103811,0.00017429,2]
[404473446,1770175839531,-4743.0,0.00017473,2]
[404473447,1770175839540,-900.0,0.00017481,2]
[404473448,1770175839549,-270.0455652,0.00017484,2]
[404473449,1770175839559,-200.0,0.00017507,2]
[404473450,1770175839569,-1000.0,0.00017534,2]
[404473451,1770175839581,-414.0,0.00017535,2]
[404473452,1770175839590,-280.03725112,0.00017539,2]
[404473453,1770175839599,-166.66,0.0001755,2]
[404473454,1770175839608,-5888.0,0.00017551,2]
[404473455,1770175839617,-200.0,0.00017566,2]
[404473456,1770175839626,-333.0,0.00017588,2]
[404473457,1770175839636,-290.39862941,0.00017594,2]
[404473458,1770175839645,-333.0,0.00017598,2]
[404473459,1770175839654,-2500.0,0.00017646,2]
[404473460,1770175839663,-181.08010149,0.00017647,2]
[404473461,1770175839673,-301.1433787,0.00017649,2]
[404473462,1770175839682,-160.0,0.00017678,2]
[404473463,1770175839692,-280.32,0.00017689,2]
[404473464,1770175839701,-2417.0707,0.00017712,2]
[404473465,1770175839711,-200.0,0.00017753,2]
[404473466,1770175839720,-414.0,0.00017762,2]
[404473467,1770175839730,-640.23,0.00017808,2]
[404473468,1770175839978,-1446.37207962,0.00017808,2]
[404473469,1770175839987,-1000.0,0.00017808,2]
[404473470,1770175839997,-200.0,0.00017856,2]
[404473471,1770175840007,-1446.37207962,0.0001789,2]
[404473472,1770175840016,-8651.8064,0.000179,2]
[404473473,1770175840025,-1000.0,0.000179,2]
[404473474,1770175840035,-500.0,0.000179,2]
[404473475,1770175840044,-150.0,0.000179,2]
[404473476,1770175840053,-170.0,0.000179,2]
[404473477,1770175840062,-9466.57807785,0.000179,3]
[404473478,1770175840079,-1650.0,0.000179,3]
[404473479,1770175840090,-13883.42192215,0.000179,3]
[404473480,1770175840099,-160.0,0.000179,3]
[404473481,1770175840108,-200.23,0.000179,2]
[404473482,1770175840118,-170.0,0.000179,2]
[404473483,1770175840127,-170.11573217,0.000179,2]
[404473484,1770175840136,-288.15,0.00017923,2]
[404473485,1770175840146,-414.0,0.0001794,2]
[404473486,1770175840155,-200.04860004,0.00017952,2]
[404473487,1770175840164,-338.08564228,0.00017952,2]
[404473488,1770175840173,-280.32,0.00017963,2]
[404473489,1770175840182,-4743.0,0.00017967,2]
[404473490,1770175840192,-1446.37207962,0.00017973,2]
[404473492,1770175840200,-500.0,0.00017973,2]
[404473494,1770175840209,-500.0,0.00017973,2]
[404473496,1770175840218,-500.0,0.00017973,2]
[404473497,1770175840228,-500.0,0.00017973,2]
[404473498,1770175840238,-500.0,0.00017973,2]
[404473499,1770175840247,-500.0,0.00017973,2]
[404473500,1770175840255,-500.0,0.00017973,2]
[404473501,1770175840264,-500.0,0.00017973,2]
[404473502,1770175840273,-500.0,0.00017973,2]
[404473503,1770175840293,-506.4289128,0.00017973,2]